Workbook

Sheet 7-11 лет
A1: Школа | B1: МБОУ "Мысовская СОШ" | E1: Отд./корп | I1: День | J1: 9.
A3: Прием пищи | B3: Раздел | C3: № рец. | D3: Блюдо | E3: Выход, г | F3: Цена | G3: Калорийность | H3: Белки | I3: Жиры | J3: Углеводы
A4: Завтрак | B4: закуска | C4: №4/2013 | D4: Салат из белокочанной капусты с морковью | E4: 60 | G4: 57.02 | H4: 0.92 | I4: 3.65 | J4: 5.12
A5: 7-11 лет | B5: 2 блюдо | C5: №345/2013 | D5: Биточек рыбный | E5: 90 | G5: 108.94 | H5: 13.62 | I5: 3.36 | J5: 6.06
B6: гарнир | C6: №377/2018 | D6: Пюре картофельное | E6: 150 | G6: 175.49 | H6: 3.73 | I6: 6.81 | J6: 24.81
B7: гор. Напиток | C7: №457/2018 | D7: Чай с сахаром | E7: 200 | G7: 39.92 | J7: 9.98
B8: хлеб бел. | C8: №108/2013 | D8: Хлеб пшеничный | E8: 30 | G8: 62.38 | H8: 2.28 | I8: 0.24 | J8: 10.35
B9: хлеб черн. | C9: №109/2013 | D9: Хлеб ржаной | E9: 30 | G9: 62.34 | H9: 1.47 | I9: 0.30 | J9: 13.44
E10: 560 | F10: 75.50 | G10: 496.39 | H10: 22.02 | I10: 14.36 | J10: 69.76
A11: Завтрак 2 | B11: мучные изделия | D11: Круассан со сгущенным молоком | E11: 60 | G11: =434/100*60 -> 260 | H11: =8/100*60 -> 5 | I11: =21.6/100*60 -> 13 | J11: =61.1/100*60 -> 37
A12: ОВЗ | B12: гор. Напиток | C12: №457/2018 | D12: Чай с сахаром | E12: 200 | G12: 39.92 | J12: 9.98
E13: 260 | F13: 26.00 | G13: =SUM(G11:G12) -> 300 | H13: =SUM(H11:H12) -> 5 | I13: 13 | J13: 47
A14: Обед | B14: закуска | C14: №157/2018 | D14: Овощи консервированные отварные (кукуруза) | E14: 60 | G14: 58.24 | H14: 1.22 | I14: 2.66 | J14: 7.36
A15: 7-11 лет | B15: 1 блюдо | C15: №95/2018 | D15: Борщ с капустой и картофелем со сметаной | E15: 200 | G15: 141.60 | H15: 2.83 | I15: 7.28 | J15: 16.20
B16: 2 блюдо | C16: №390/2013 | D16: Тефтели "Ежики" в соусе | E16: 90 | G16: 233.27 | H16: 9.89 | I16: 16.75 | J16: 10.73
B17: гарнир | C17: №202/2018 | D17: Каша гречневая | E17: 150 | G17: 288.28 | H17: 10.40 | I17: 6.71 | J17: 46.57
B18: напиток | C18: №496/2018 | D18: Напиток из шиповника | E18: 200 | G18: 72.76 | H18: 0.68 | I18: 0.28 | J18: 16.88
B19: хлеб бел. | C19: №108/2013 | D19: Хлеб пшеничный | E19: 20 | G19: 35.12 | H19: 1.52 | I19: 0.16 | J19: 6.90
B20: хлеб черн. | C20: №109/2013 | D20: Хлеб ржаной | E20: 20 | G20: 83.12 | H20: 1.96 | I20: 0.40 | J20: 17.92
E22: 740 | F22: 75.50 | G22: 850 | H22: 27 | I22: 34 | J22: 109

Sheet 12-18 лет
A1: Школа | B1: МБОУ "Мысовская СОШ" | E1: Отд./корп | I1: День | J1: 9.
A3: Прием пищи | B3: Раздел | C3: № рец. | D3: Блюдо | E3: Выход, г | F3: Цена | G3: Калорийность | H3: Белки | I3: Жиры | J3: Углеводы
A4: Завтрак | B4: закуска | C4: №4/2013 | D4: Салат из белокочанной капусты с морковью | E4: 60 | G4: 57.02 | H4: 0.92 | I4: 3.65 | J4: 5.12
A5: 12-18 лет | B5: 2 блюдо | C5: №345/2013 | D5: Биточек рыбный | E5: 100 | G5: =108.94/90*100 -> 121.04 | H5: =13.62/90*100 -> 15.13 | I5: =3.36/90*100 -> 3.73 | J5: =6.06/90*100 -> 6.73
B6: гарнир | C6: №377/2018 | D6: Пюре картофельное | E6: 180 | G6: =175.49/150*180 -> 210.59 | H6: =3.73/150*180 -> 4.48 | I6: =6.81/150*180 -> 8.17 | J6: =24.81/150*180 -> 29.77
B7: гор. Напиток | C7: №457/2018 | D7: Чай с сахаром | E7: 200 | G7: 39.92 | J7: 9.98
B8: хлеб бел. | C8: №108/2013 | D8: Хлеб пшеничный | E8: 30 | G8: 62.38 | H8: 2.28 | I8: 0.24 | J8: 10.35
B9: хлеб черн. | C9: №109/2013 | D9: Хлеб ржаной | E9: 30 | G9: 62.34 | H9: 1.47 | I9: 0.30 | J9: 13.44
E10: =SUM(E4:E9) -> 600 | F10: 84.66 | G10: =SUM(G4:G9) -> 553.29 | H10: =SUM(H4:H9) -> 24.28 | I10: 16.10 | J10: 75.40
A11: Обед | B11: закуска | C11: №157/2018 | D11: Овощи консервированные отварные (кукуруза) | E11: 60 | G11: 58.24 | H11: 1.22 | I11: 2.66 | J11: 7.36
A12: 12-18 лет | B12: 1 блюдо | C12: №95/2018 | D12: Борщ с капустой и картофелем со сметаной | E12: 250 | G12: =141.6/200*250 -> 177.00 | H12: =2.83/200*250 -> 3.54 | I12: =7.28/200*250 -> 9.10 | J12: =16.2/200*250 -> 20.25
B13: 2 блюдо | C13: №390/2013 | D13: Тефтели "Ежики" в соусе | E13: 100 | G13: =233.27/90*100 -> 259.19 | H13: =9.89/90*100 -> 10.99 | I13: =16.75/90*100 -> 18.61 | J13: =10.73/90*100 -> 11.92
B14: гарнир | C14: №202/2018 | D14: Каша гречневая | E14: 180 | G14: =288.28/150*180 -> 345.94 | H14: =10.4/150*180 -> 12.48 | I14: =6.71/150*180 -> 8.05 | J14: =46.57/150*180 -> 55.88
B15: напиток | C15: №496/2018 | D15: Напиток из шиповника | E15: 200 | G15: 72.76 | H15: 0.68 | I15: 0.28 | J15: 16.88
B16: хлеб бел. | C16: №108/2013 | D16: Хлеб пшеничный | E16: 20 | G16: 35.12 | H16: 1.52 | I16: 0.16 | J16: 6.90
B17: хлеб черн. | C17: №109/2013 | D17: Хлеб ржаной | E17: 20 | G17: 83.12 | H17: 1.96 | I17: 0.40 | J17: 17.92
E19: =SUM(E11:E18) -> 830 | F19: 84.66 | G19: =SUM(G11:G18) -> 1031 | H19: =SUM(H11:H18) -> 32 | I19: 39 | J19: 137
